[Event "Karnataka State Open-ch 2018"]
[Site "Bengaluru"]
[Date "2018.04.14"]
[Round "2"]
[White "Arvind, Shastry"]
[Black "Harshini A"]
[Result "1-0"]
[ECO "D37"]
[WhiteElo "2175"]
[BlackElo "2154"]
[Annotator "RC"]
[PlyCount "79"]
[EventDate "2018.??.??"]
[EventType "swiss"]
[EventCountry "IND"]
[SourceTitle "playchess.com"]
[Source "ChessBase"]
[SourceQuality "1"]
[TimeControl "5400+30"]

1. d4 {[%emt 0:00:00]} d5 {[%emt 0:00:22]} 2. Nf3 {[%emt 0:00:00]} Nf6 {[%emt 0:00:24]} 3. c4 {[%emt 0:00:00]} e6 {[%emt 0:00:22]} 4. Nc3 {[%emt 0:00:00]} Be7 {[%emt 0:00:26]} 5. Bf4 {[%emt 0:00:01]} O-O {[%emt 0:00:23]} 6. e3 {[%emt 0:00:04]} b6 {[%emt 0:00:25]} 7. cxd5 {[%emt 0:01:12]} exd5 {[%emt 0:01:08]} 8. Bd3 {[%emt 0:00:29]} Bg4 {[%emt 0:03:02]} 9. Qc2 {[%emt 0:00:31]} h6 {[%emt 0:03:23]} 10. Ne5 {[%emt 0:00:51]} Be6 {[%emt 0:01:28]} 11. h3 {[%emt 0:00:10]} c5 {[%emt 0:01:30]} 12. O-O {[%emt 0:00:25]} c4 {[%emt 0:02:25]} 13. Be2 {[%emt 0:01:18]} Re8 {[%emt 0:01:41]} 14. Bh2 {[%emt 0:00:12]} Nbd7 {[%emt 0:02:30]} 15. f4 {[%emt 0:01:06]} Nf8 {[%emt 0:05:11]} 16. Bf3 {[%emt 0:04:54]} N6d7 {[%emt 0:08:57]} 17. Nc6 {[%emt 0:00:30]} Qc8 {[%emt 0:09:34]} 18. Nxe7+ {[%emt 0:00:04]} Rxe7 {[%emt 0:00:55]} 19. f5 {[%emt 0:00:03]} Nf6 {[%emt 0:04:05]} 20. fxe6 {[%emt 0:00:04]} fxe6 {[%emt 0:00:47]} 21. e4 {[%emt 0:00:29]} Qd7 {[%emt 0:01:02]} 22. Be5 {[%emt 0:00:30]} N8h7 {[%emt 0:02:30]} 23. exd5 {[%emt 0:00:25]} exd5 {[%emt 0:01:02]} 24. Qg6 {[%emt 0:01:01]} Rae8 {[%emt 0:04:38]} 25. Bd1 {[%emt 0:00:18]} Nf8 {[%emt 0:01:54]} 26. Qg3 {[%emt 0:01:28]} N6h7 {[%emt 0:04:31]} 27. Ba4 {[%emt 0:00:11]} Qc8 {[%emt 0:02:39]} 28. Bxe8 {[%emt 0:00:06]} Qxe8 {[%emt 0:00:35]} 29. Nxd5 {[%emt 0:00:10]} Rd7 {[%emt 0:01:10]} 30. Rae1 {[%emt 0:00:20]} Qe6 {[%emt 0:03:50]} 31. Rxf8+ {[%emt 0:00:28]} Kxf8 {[%emt 0:03:02]} 32. Bxg7+ {[%emt 0:00:07]} Rxg7 {[%emt 0:01:20]} 33. Qb8+ {[%emt 0:00:07]} Kf7 {[%emt 0:01:34]} 34. Rxe6 {[%emt 0:00:02]} Kxe6 {[%emt 0:00:52]} 35. Qe5+ {[%emt 0:00:03]} Kf7 {[%emt 0:00:50]} 36. Qe7+ {[%emt 0:00:02]} Kg8 {[%emt 0:00:57]} 37. Qe8+ {[%emt 0:00:03]} Nf8 {[%emt 0:01:00]} 38. Nf6+ {[%emt 0:00:03]} Kh8 {[%emt 0:00:54]} 39. Qxf8+ {[%emt 0:00:06]} Rg8 {[%emt 0:00:09]} 40. Qxg8# {[%emt 0:00:04]} 1-0

[Event "Karnataka State Open-ch 2018"]
[Site "Bengaluru"]
[Date "2018.04.14"]
[Round "2"]
[White "Balkishan, A."]
[Black "Prahalada Udupa"]
[Result "1-0"]
[ECO "C05"]
[WhiteElo "2026"]
[BlackElo "1140"]
[Annotator "NA RC"]
[PlyCount "71"]
[EventDate "2018.??.??"]
[EventType "swiss"]
[EventCountry "IND"]
[SourceTitle "playchess.com"]
[Source "ChessBase"]
[SourceQuality "1"]
[TimeControl "5400+30"]

1. e4 e6 2. d4 d5 3. Nd2 Nf6 4. e5 Nfd7 5. Bd3 c5 6. c3 Nc6 7. Ne2 f6 8. Nf4 Qe7 9. Qh5+ Qf7 10. Qxf7+ Kxf7 11. exf6 Nxf6 12. Nf3 Bd6 13. O-O Re8 14. Re1 e5 15. dxe5 Nxe5 16. Nxe5+ Bxe5 17. Be3 Bd7 18. Rad1 Bc6 19. Bf5 Rad8 20. Ne6 Rxe6 21. Bxe6+ Kxe6 22. Bf4 Kf5 23. Bxe5 Re8 24. Bxf6 Rxe1+ 25. Rxe1 Kxf6 26. f3 a5 27. Kf2 b5 28. h4 b4 29. g4 h6 30. f4 bxc3 31. bxc3 Bb5 32. f5 Bd7 33. Kg3 h5 34. g5+ Kxf5 35. Re7 Bb5 36. Rc7 1-0

[Event "Karnataka State Open-ch 2018"]
[Site "Bengaluru"]
[Date "2018.04.14"]
[Round "2"]
[White "Likhit, Chilukuri"]
[Black "Anand, Harjee Singh"]
[Result "1-0"]
[ECO "B24"]
[WhiteElo "1988"]
[BlackElo "1137"]
[Annotator "NA RC"]
[PlyCount "37"]
[EventDate "2018.??.??"]
[EventType "swiss"]
[EventCountry "IND"]
[SourceTitle "playchess.com"]
[Source "ChessBase"]
[SourceQuality "1"]
[TimeControl "5400+30"]

1. e4 {[%emt 0:00:00]} c5 {[%emt 0:00:19]} 2. Nc3 {[%emt 0:00:00]} Nc6 {[%emt 0:00:45]} 3. Bb5 {[%emt 0:00:00]} g6 {[%emt 0:02:41]} 4. Bxc6 {[%emt 0:00:00]} dxc6 {[%emt 0:00:06]} 5. d3 {[%emt 0:00:00]} Bg7 {[%emt 0:00:37]} 6. f4 {[%emt 0:00:05]} f5 {[%emt 0:01:45]} 7. e5 {[%emt 0:01:57]} e6 {[%emt 0:00:16]} 8. Nf3 {[%emt 0:00:10]} Ne7 {[%emt 0:00:05]} 9. O-O {[%emt 0:00:19]} Nd5 {[%emt 0:00:11]} 10. Bd2 {[%emt 0:00:59]} Qb6 {[%emt 0:03:05]} 11. Na4 {[%emt 0:01:00]} Qb5 {[%emt 0:01:54]} 12. c4 {[%emt 0:00:06]} Qa6 {[%emt 0:02:21]} 13. cxd5 {[%emt 0:00:07]} cxd5 {[%emt 0:00:48]} 14. Nxc5 {[%emt 0:00:08]} Qb6 {[%emt 0:00:00]} 15. Qa4+ {[%emt 0:00:07]} Kf7 {[%emt 0:00:33]} 16. Ng5+ {[%emt 0:00:06]} Ke7 {[%emt 0:00:49]} 17. Bb4 {[%emt 0:00:08]} Bd7 {[%emt 0:00:28]} 18. Qxd7+ {[%emt 0:00:07]} Kf8 {[%emt 0:00:19]} 19. Qf7# {[%emt 0:00:06]} 1-0

[Event "Karnataka State Open-ch 2018"]
[Site "Bengaluru"]
[Date "2018.04.14"]
[Round "2"]
[White "Santoshkashyap, Hg"]
[Black "Kaushik Srivatsa H"]
[Result "1-0"]
[ECO "D37"]
[WhiteElo "1929"]
[BlackElo "1132"]
[Annotator "NA RC"]
[PlyCount "109"]
[EventDate "2018.??.??"]
[EventType "swiss"]
[EventCountry "IND"]
[SourceTitle "playchess.com"]
[Source "ChessBase"]
[SourceQuality "1"]
[TimeControl "5400+30"]

1. d4 {[%emt 0:00:52]} d5 {[%emt 0:00:07]} 2. Nf3 {[%emt 0:00:12]} Nf6 {[%emt 0:00:05]} 3. c4 {[%emt 0:00:12]} e6 {[%emt 0:00:05]} 4. Nc3 {[%emt 0:00:07]} Be7 {[%emt 0:00:05]} 5. Bf4 {[%emt 0:00:10]} O-O {[%emt 0:00:26]} 6. e3 {[%emt 0:00:07]} a6 {[%emt 0:01:00]} 7. Rc1 {[%emt 0:00:27]} Nbd7 {[%emt 0:00:57]} 8. cxd5 {[%emt 0:05:53]} exd5 {[%emt 0:00:20]} 9. Bd3 {[%emt 0:00:16]} c5 {[%emt 0:02:18]} 10. O-O {[%emt 0:00:42]} Qb6 {[%emt 0:02:11]} 11. Na4 {[%emt 0:01:06]} Qa5 {[%emt 0:01:55]} 12. dxc5 {[%emt 0:00:25]} Nxc5 {[%emt 0:00:24]} 13. Nxc5 {[%emt 0:00:15]} Bxc5 {[%emt 0:00:09]} 14. a3 {[%emt 0:00:03]} Be7 {[%emt 0:00:47]} 15. Bc7 {[%emt 0:12:58]} b6 {[%emt 0:00:25]} 16. Rc6 {[%emt 0:00:16]} Bd8 {[%emt 0:01:13]} 17. Bd6 {[%emt 0:00:16]} d4 {[%emt 0:03:17]} 18. Bxf8 {[%emt 0:00:54]} Kxf8 {[%emt 0:00:25]} 19. Nxd4 {[%emt 0:00:16]} Qg5 {[%emt 0:00:53]} 20. Nf3 {[%emt 0:09:54]} Qh5 {[%emt 0:02:32]} 21. Bg6 {[%emt 0:06:51]} Qd5 {[%emt 0:02:30]} 22. Rxf6 {[%emt 0:00:14]} Qxd1 {[%emt 0:00:53]} 23. Rxf7+ {[%emt 0:00:07]} Kg8 {[%emt 0:00:07]} 24. Rxd1 {[%emt 0:00:07]} hxg6 {[%emt 0:00:38]} 25. Ra7 {[%emt 0:00:23]} Rxa7 {[%emt 0:00:42]} 26. Rxd8+ {[%emt 0:00:07]} Kf7 {[%emt 0:00:31]} 27. Rxc8 {[%emt 0:00:05]} Re7 {[%emt 0:02:11]} 28. h4 {[%emt 0:00:16]} Rb7 {[%emt 0:01:40]} 29. g3 {[%emt 0:01:07]} Ke7 {[%emt 0:00:31]} 30. Rc6 {[%emt 0:00:29]} a5 {[%emt 0:00:33]} 31. Rxg6 {[%emt 0:00:10]} Kf8 {[%emt 0:00:13]} 32. b4 {[%emt 0:00:21]} axb4 {[%emt 0:00:20]} 33. axb4 {[%emt 0:00:03]} b5 {[%emt 0:00:08]} 34. Nd4 {[%emt 0:00:08]} Kg8 {[%emt 0:00:26]} 35. Rg5 {[%emt 0:00:09]} Kf8 {[%emt 0:00:14]} 36. Rxb5 {[%emt 0:00:08]} Ra7 {[%emt 0:00:08]} 37. g4 {[%emt 0:00:19]} Ra1+ {[%emt 0:00:14]} 38. Kg2 {[%emt 0:00:06]} Ra7 {[%emt 0:00:03]} 39. h5 {[%emt 0:00:07]} Kf7 {[%emt 0:00:16]} 40. g5 {[%emt 0:00:18]} Ra6 {[%emt 0:00:36]} 41. Rb7+ {[%emt 0:00:13]} Kg8 {[%emt 0:01:23]} 42. b5 {[%emt 0:00:07]} Ra8 {[%emt 0:00:17]} 43. g6 {[%emt 0:00:30]} Re8 {[%emt 0:00:58]} 44. b6 {[%emt 0:00:20]} Kh8 {[%emt 0:01:09]} 45. Nc6 {[%emt 0:00:11]} Kg8 {[%emt 0:00:24]} 46. Rb8 {[%emt 0:00:09]} Kf8 {[%emt 0:00:05]} 47. Rxe8+ {[%emt 0:00:07]} Kxe8 {[%emt 0:00:29]} 48. b7 {[%emt 0:00:06]} Kd7 {[%emt 0:00:08]} 49. b8=Q {[%emt 0:00:09]} Kxc6 {[%emt 0:00:05]} 50. Kf3 {[%emt 0:00:18]} Kd5 {[%emt 0:00:27]} 51. h6 {[%emt 0:00:14]} gxh6 {[%emt 0:00:03]} 52. g7 {[%emt 0:00:06]} h5 {[%emt 0:00:14]} 53. g8=Q+ {[%emt 0:00:08]} Kc5 {[%emt 0:00:08]} 54. Ke4 {[%emt 0:00:20]} h4 {[%emt 0:00:12]} 55. Qd5# {[%emt 0:00:07]} 1-0

[Event "Karnataka State Open-ch 2018"]
[Site "Bengaluru"]
[Date "2018.04.14"]
[Round "2"]
[White "Parthasarathy R"]
[Black "Rajath Gururaj"]
[Result "1/2-1/2"]
[ECO "B30"]
[WhiteElo "1345"]
[BlackElo "1131"]
[Annotator "NA RC"]
[PlyCount "78"]
[EventDate "2018.??.??"]
[EventType "swiss"]
[EventCountry "IND"]
[SourceTitle "playchess.com"]
[Source "ChessBase"]
[SourceQuality "1"]
[TimeControl "5400+30"]

1. e4 {[%emt 0:01:01]} c5 {[%emt 0:01:17]} 2. Nf3 {[%emt 0:03:33]} Nc6 {[%emt 0:00:33]} 3. Bb5 {[%emt 0:00:29]} d6 {[%emt 0:01:38]} 4. O-O {[%emt 0:00:36]} Bd7 {[%emt 0:00:21]} 5. Re1 {[%emt 0:00:41]} e6 {[%emt 0:01:16]} 6. c3 {[%emt 0:00:34]} Be7 {[%emt 0:02:04]} 7. d4 {[%emt 0:00:13]} cxd4 {[%emt 0:00:27]} 8. cxd4 {[%emt 0:00:10]} Nf6 {[%emt 0:00:27]} 9. Nc3 {[%emt 0:01:27]} a6 {[%emt 0:00:27]} 10. Bf1 {[%emt 0:05:33]} O-O 11. d5 {[%emt 0:02:36]} Nb8 {[%emt 0:03:37]} 12. Qb3 {[%emt 0:01:21]} Qc8 {[%emt 0:01:01]} 13. Be3 {[%emt 0:07:35]} e5 {[%emt 0:00:59]} 14. Rac1 {[%emt 0:00:53]} Bg4 {[%emt 0:26:47]} 15. Nb5 {[%emt 0:04:56]} Qd8 {[%emt 0:00:55]} 16. Nc7 {[%emt 0:00:15]} Nbd7 {[%emt 0:00:16]} 17. Nxa8 {[%emt 0:00:22]} Qxa8 {[%emt 0:00:14]} 18. Nd2 {[%emt 0:00:29]} Bh5 {[%emt 0:02:33]} 19. Rc7 {[%emt 0:01:49]} Rb8 {[%emt 0:00:03]} 20. Rec1 {[%emt 0:02:48]} Bg6 {[%emt 0:00:12]} 21. f3 {[%emt 0:00:15]} Bd8 {[%emt 0:00:41]} 22. R7c2 {[%emt 0:03:46]} h6 {[%emt 0:00:21]} 23. g3 {[%emt 0:01:32]} a5 {[%emt 0:00:45]} 24. a4 {[%emt 0:02:06]} b6 {[%emt 0:00:48]} 25. Rc6 {[%emt 0:02:06]} Nc5 {[%emt 0:00:26]} 26. Bxc5 {[%emt 0:00:57]} bxc5 {[%emt 0:00:05]} 27. Qc3 {[%emt 0:00:39]} Ne8 {[%emt 0:00:25]} 28. Nc4 {[%emt 0:01:08]} Bc7 {[%emt 0:00:29]} 29. Na3 {[%emt 0:00:46]} Qb7 {[%emt 0:00:13]} 30. Nb5 {[%emt 0:00:14]} Rc8 {[%emt 0:00:44]} 31. Nxc7 {[%emt 0:01:20]} Rxc7 {[%emt 0:01:05]} 32. Rxc7 {[%emt 0:01:15]} Qxc7 {[%emt 0:02:28]} 33. Bd3 {[%emt 0:00:15]} Qb6 {[%emt 0:00:16]} 34. Ra1 {[%emt 0:00:36]} c4+ {[%emt 0:00:32]} 35. Kf1 {[%emt 0:00:52]} cxd3 {[%emt 0:00:15]} 36. Ra3 {[%emt 0:21:38]} Qe3 {[%emt 0:01:14]} 37. Qxd3 {[%emt 0:00:05]} Qc1+ {[%emt 0:00:26]} 38. Kg2 {[%emt 0:00:49]} Qxb2+ {[%emt 0:00:03]} 39. Kh3 {[%emt 0:00:17]} f5 {[%emt 0:00:23]} 1/2-1/2

[Event "Karnataka State Open-ch 2018"]
[Site "Bengaluru"]
[Date "2018.04.14"]
[Round "2"]
[White "Pranav Tukaram Gunake"]
[Black "Augustin, A."]
[Result "1/2-1/2"]
[ECO "B34"]
[WhiteElo "1144"]
[BlackElo "2065"]
[Annotator "NA RC"]
[PlyCount "82"]
[EventDate "2018.??.??"]
[EventType "swiss"]
[EventCountry "IND"]
[SourceTitle "playchess.com"]
[Source "ChessBase"]
[SourceQuality "1"]
[TimeControl "5400+30"]

1. e4 {[%emt 0:00:00]} c5 {[%emt 0:00:27]} 2. Nf3 {[%emt 0:00:01]} Nc6 {[%emt 0:00:12]} 3. d4 {[%emt 0:00:11]} cxd4 {[%emt 0:00:09]} 4. Nxd4 {[%emt 0:00:08]} Nf6 {[%emt 0:00:03]} 5. Nc3 {[%emt 0:00:43]} e5 {[%emt 0:00:02]} 6. Nxc6 {[%emt 0:00:30]} bxc6 {[%emt 0:00:04]} 7. Bc4 {[%emt 0:01:05]} Bc5 {[%emt 0:00:38]} 8. Bg5 {[%emt 0:00:49]} O-O {[%emt 0:03:45]} 9. O-O {[%emt 0:01:41]} Rb8 {[%emt 0:03:36]} 10. b3 {[%emt 0:01:50]} h6 {[%emt 0:04:35]} 11. Bh4 {[%emt 0:00:40]} Bd4 {[%emt 0:01:30]} 12. Qd3 {[%emt 0:01:56]} g5 {[%emt 0:00:59]} 13. Bg3 {[%emt 0:00:41]} d5 {[%emt 0:00:29]} 14. exd5 {[%emt 0:03:33]} cxd5 {[%emt 0:00:06]} 15. Nxd5 {[%emt 0:03:08]} Nxd5 {[%emt 0:00:54]} 16. c3 {[%emt 0:01:48]} Be6 {[%emt 0:09:48]} 17. cxd4 {[%emt 0:01:41]} Nb4 {[%emt 0:01:50]} 18. Qd1 {[%emt 0:01:57]} Bxc4 {[%emt 0:10:32]} 19. bxc4 {[%emt 0:00:29]} Rc8 {[%emt 0:00:57]} 20. dxe5 {[%emt 0:03:03]} Rxc4 {[%emt 0:02:04]} 21. Qd6 {[%emt 0:01:20]} Qxd6 {[%emt 0:09:54]} 22. exd6 {[%emt 0:00:10]} f5 {[%emt 0:01:04]} 23. f3 {[%emt 0:00:51]} Kf7 {[%emt 0:06:32]} 24. a3 {[%emt 0:02:21]} Nd5 {[%emt 0:10:15]} 25. Rac1 {[%emt 0:02:54]} Rxc1 {[%emt 0:16:49]} 26. Rxc1 {[%emt 0:00:13]} Ke6 {[%emt 0:00:10]} 27. Re1+ {[%emt 0:01:08]} Kd7 {[%emt 0:00:32]} 28. Re5 {[%emt 0:00:50]} Kc6 {[%emt 0:01:00]} 29. Re6 {[%emt 0:01:03]} Rf6 {[%emt 0:03:28]} 30. Rxf6 {[%emt 0:00:51]} Nxf6 {[%emt 0:00:05]} 31. Be5 {[%emt 0:01:37]} Ne8 {[%emt 0:00:09]} 32. g4 {[%emt 0:01:13]} fxg4 {[%emt 0:08:14]} 33. fxg4 {[%emt 0:01:01]} Nxd6 {[%emt 0:00:02]} 34. Bg7 {[%emt 0:00:28]} Nf7 {[%emt 0:00:52]} 35. Kf2 {[%emt 0:00:19]} Kd5 {[%emt 0:03:23]} 36. Ke3 {[%emt 0:00:44]} a6 {[%emt 0:02:42]} 37. Kd3 {[%emt 0:00:42]} Ne5+ {[%emt 0:00:34]} 38. Bxe5 {[%emt 0:01:01]} Kxe5 {[%emt 0:00:02]} 39. Ke3 {[%emt 0:00:14]} Kd5 {[%emt 0:00:36]} 40. Kd3 {[%emt 0:00:18]} Ke5 {[%emt 0:00:31]} 41. Ke3 {[%emt 0:00:56]} Kd5 {[%emt 0:00:37]} 1/2-1/2

[Event "Karnataka State Open-ch 2018"]
[Site "Bengaluru"]
[Date "2018.04.14"]
[Round "2"]
[White "Aditya Krishnamurthy"]
[Black "Gavi, Siddayya"]
[Result "0-1"]
[ECO "A48"]
[WhiteElo "1142"]
[BlackElo "1993"]
[Annotator "NA RC"]
[PlyCount "46"]
[EventDate "2018.??.??"]
[EventType "swiss"]
[EventCountry "IND"]
[SourceTitle "playchess.com"]
[Source "ChessBase"]
[SourceQuality "1"]
[TimeControl "5400+30"]

1. d4 {[%emt 0:00:00]} Nf6 {[%emt 0:00:24]} 2. Nf3 {[%emt 0:01:14]} g6 {[%emt 0:00:10]} 3. Bf4 {[%emt 0:00:17]} Bg7 {[%emt 0:00:09]} 4. e3 {[%emt 0:00:21]} d6 {[%emt 0:00:08]} 5. Nbd2 {[%emt 0:00:13]} O-O {[%emt 0:01:12]} 6. Be2 {[%emt 0:01:36]} Nh5 {[%emt 0:02:05]} 7. Bg5 {[%emt 0:00:23]} h6 {[%emt 0:00:28]} 8. Bh4 {[%emt 0:00:21]} g5 {[%emt 0:00:09]} 9. Bg3 {[%emt 0:03:15]} Nxg3 {[%emt 0:00:19]} 10. hxg3 {[%emt 0:00:28]} c5 {[%emt 0:00:44]} 11. c3 {[%emt 0:00:15]} Nc6 {[%emt 0:00:13]} 12. Qc2 {[%emt 0:03:48]} Re8 {[%emt 0:01:32]} 13. Nxg5 {[%emt 0:04:25]} hxg5 {[%emt 0:00:16]} 14. Qh7+ {[%emt 0:00:21]} Kf8 {[%emt 0:00:19]} 15. Ne4 {[%emt 0:02:16]} d5 {[%emt 0:04:38]} 16. Nxg5 {[%emt 0:03:15]} e5 {[%emt 0:00:30]} 17. Nf3 {[%emt 0:06:06]} Qf6 {[%emt 0:01:06]} 18. O-O-O {[%emt 0:01:31]} Bf5 {[%emt 0:00:30]} 19. Qh4 {[%emt 0:01:09]} exd4 {[%emt 0:00:15]} 20. Qxf6 {[%emt 0:03:24]} Bxf6 {[%emt 0:00:04]} 21. Bb5 {[%emt 0:00:45]} dxc3 {[%emt 0:00:46]} 22. b3 {[%emt 0:00:42]} Nb4 {[%emt 0:00:28]} 23. Bxe8 {[%emt 0:06:41]} Nxa2# 0-1

[Event "Karnataka State Open-ch 2018"]
[Site "Bengaluru"]
[Date "2018.04.14"]
[Round "2"]
[White "Basavaraj B S"]
[Black "Manjunath, J."]
[Result "0-1"]
[ECO "B56"]
[WhiteElo "1140"]
[BlackElo "1986"]
[Annotator "NA RC"]
[PlyCount "72"]
[EventDate "2018.??.??"]
[EventType "swiss"]
[EventCountry "IND"]
[SourceTitle "playchess.com"]
[Source "ChessBase"]
[SourceQuality "1"]
[TimeControl "5400+30"]

1. e4 {[%emt 0:00:00]} c5 {[%emt 0:00:09]} 2. Nf3 {[%emt 0:00:09]} d6 {[%emt 0:00:16]} 3. d4 {[%emt 0:00:33]} cxd4 {[%emt 0:00:30]} 4. Nxd4 {[%emt 0:00:09]} Nf6 {[%emt 0:00:25]} 5. Nc3 {[%emt 0:00:09]} Nc6 {[%emt 0:00:54]} 6. Bb5 {[%emt 0:02:16]} Bd7 {[%emt 0:01:58]} 7. O-O {[%emt 0:02:13]} e5 {[%emt 0:07:37]} 8. Nf5 {[%emt 0:02:30]} Bxf5 {[%emt 0:09:42]} 9. exf5 {[%emt 0:01:03]} Qd7 {[%emt 0:01:03]} 10. Qf3 {[%emt 0:02:25]} a6 {[%emt 0:04:35]} 11. Ba4 {[%emt 0:01:11]} Rc8 {[%emt 0:04:15]} 12. Bg5 {[%emt 0:00:34]} Be7 {[%emt 0:02:35]} 13. Bxf6 {[%emt 0:00:51]} Bxf6 {[%emt 0:01:47]} 14. Nd5 {[%emt 0:00:17]} b5 {[%emt 0:05:41]} 15. Bb3 {[%emt 0:06:35]} Nd4 {[%emt 0:02:18]} 16. Qe4 {[%emt 0:01:42]} Qxf5 {[%emt 0:01:30]} 17. Qxf5 {[%emt 0:02:26]} Nxf5 {[%emt 0:00:14]} 18. c3 Ne7 {[%emt 0:01:13]} 19. Nxf6+ {[%emt 0:03:13]} gxf6 {[%emt 0:00:12]} 20. f4 {[%emt 0:00:40]} e4 {[%emt 0:11:07]} 21. a4 {[%emt 0:00:34]} O-O {[%emt 0:01:27]} 22. axb5 {[%emt 0:01:02]} axb5 {[%emt 0:00:08]} 23. Rfd1 {[%emt 0:02:36]} Rfd8 {[%emt 0:00:29]} 24. Ra6 {[%emt 0:00:48]} d5 {[%emt 0:07:01]} 25. Rxf6 {[%emt 0:02:22]} b4 {[%emt 0:00:24]} 26. Rc1 {[%emt 0:02:23]} Kg7 {[%emt 0:00:52]} 27. Rb6 {[%emt 0:01:06]} bxc3 {[%emt 0:00:08]} 28. bxc3 {[%emt 0:02:03]} Rb8 {[%emt 0:01:13]} 29. Rxb8 {[%emt 0:02:45]} Rxb8 {[%emt 0:00:09]} 30. Bc2 {[%emt 0:02:30]} f5 {[%emt 0:00:34]} 31. h3 {[%emt 0:01:09]} Rc8 {[%emt 0:00:22]} 32. Bb3 {[%emt 0:01:44]} d4 {[%emt 0:00:10]} 33. c4 {[%emt 0:01:10]} Nd5 {[%emt 0:02:25]} 34. g3 {[%emt 0:00:47]} Nc3 {[%emt 0:00:08]} 35. Kf2 {[%emt 0:02:33]} Rb8 {[%emt 0:00:22]} 36. Ba4 {[%emt 0:04:13]} Nxa4 {[%emt 0:00:05]} 0-1

[Event "Karnataka State Open-ch 2018"]
[Site "Bengaluru"]
[Date "2018.04.14"]
[Round "2"]
[White "Deekshith J"]
[Black "Isha, Sharma"]
[Result "0-1"]
[ECO "B00"]
[WhiteElo "1139"]
[BlackElo "1926"]
[Annotator "NA RC"]
[PlyCount "42"]
[EventDate "2018.??.??"]
[EventType "swiss"]
[EventCountry "IND"]
[SourceTitle "playchess.com"]
[Source "ChessBase"]
[SourceQuality "1"]
[TimeControl "5400+30"]

1. e4 {[%emt 0:00:00]} d6 {[%emt 0:00:06]} 2. d3 {[%emt 0:00:00]} e5 {[%emt 0:00:38]} 3. g3 {[%emt 0:00:00]} g6 {[%emt 0:00:21]} 4. Bg2 {[%emt 0:00:00]} Bg7 {[%emt 0:00:02]} 5. Nf3 {[%emt 0:00:05]} Ne7 {[%emt 0:00:09]} 6. O-O {[%emt 0:00:08]} O-O {[%emt 0:00:05]} 7. Nbd2 {[%emt 0:00:11]} f5 {[%emt 0:00:25]} 8. Re1 {[%emt 0:00:20]} a5 {[%emt 0:01:13]} 9. a4 {[%emt 0:00:14]} Na6 {[%emt 0:00:31]} 10. c3 {[%emt 0:01:08]} c6 {[%emt 0:00:49]} 11. Ng5 {[%emt 0:01:11]} h6 {[%emt 0:03:47]} 12. Qb3+ {[%emt 0:00:40]} d5 {[%emt 0:00:07]} 13. Ngf3 {[%emt 0:02:15]} Nc5 {[%emt 0:00:35]} 14. Qc2 {[%emt 0:00:41]} Be6 {[%emt 0:05:17]} 15. b4 {[%emt 0:05:16]} axb4 {[%emt 0:05:31]} 16. cxb4 {[%emt 0:00:16]} dxe4 {[%emt 0:00:24]} 17. Qxc5 {[%emt 0:02:17]} exf3 {[%emt 0:00:06]} 18. Nxf3 {[%emt 0:00:11]} b6 {[%emt 0:04:34]} 19. Qe3 {[%emt 0:01:03]} Nd5 {[%emt 0:06:27]} 20. Qe2 {[%emt 0:02:54]} Re8 {[%emt 0:02:45]} 21. Nxe5 {[%emt 0:01:50]} Bxe5 {[%emt 0:00:32]} 0-1

[Event "Karnataka State Open-ch 2018"]
[Site "Bengaluru"]
[Date "2018.04.15"]
[Round "4"]
[White "Girish, A. Koushik"]
[Black "Muralidhara G K"]
[Result "1-0"]
[ECO "A05"]
[WhiteElo "2401"]
[BlackElo "1591"]
[Annotator "ChessBase"]
[PlyCount "45"]
[EventDate "2018.??.??"]
[EventType "swiss"]
[EventCountry "IND"]
[SourceTitle "playchess.com"]
[Source "ChessBase"]
[SourceQuality "1"]
[TimeControl "5400+30"]

1. Nf3 {[%emt 0:00:00]} Nf6 {[%emt 0:00:08]} 2. c4 {[%emt 0:00:00]} e6 {[%emt 0:00:05]} 3. g3 {[%emt 0:00:01]} b6 {[%emt 0:00:35]} 4. Bg2 {[%emt 0:00:04]} Bb7 {[%emt 0:00:06]} 5. O-O {[%emt 0:00:05]} Be7 {[%emt 0:00:22]} 6. Nc3 {[%emt 0:00:11]} O-O {[%emt 0:00:42]} 7. Re1 {[%emt 0:00:10]} c5 {[%emt 0:00:11]} 8. e4 {[%emt 0:00:07]} d6 {[%emt 0:00:17]} 9. d4 {[%emt 0:00:09]} cxd4 {[%emt 0:00:15]} 10. Nxd4 {[%emt 0:00:06]} Nbd7 {[%emt 0:00:46]} 11. e5 {[%emt 0:01:48]} Bxg2 {[%emt 0:00:18]} 12. exf6 {[%emt 0:00:05]} Nxf6 {[%emt 0:00:32]} 13. Kxg2 {[%emt 0:00:04]} Rc8 {[%emt 0:02:09]} 14. Qe2 {[%emt 0:01:14]} Qc7 {[%emt 0:00:24]} 15. Bg5 {[%emt 0:02:43]} Qc5 {[%emt 0:01:03]} 16. Qd2 {[%emt 0:03:13]} Qxc4 {[%emt 0:00:50]} 17. Nf5 {[%emt 0:00:50]} Qc6+ {[%emt 0:02:12]} 18. Kg1 {[%emt 0:00:09]} Rfe8 {[%emt 0:01:54]} 19. Nxe7+ {[%emt 0:00:11]} Rxe7 {[%emt 0:00:12]} 20. Bxf6 {[%emt 0:00:04]} gxf6 {[%emt 0:00:39]} 21. Nd5 {[%emt 0:00:06]} Qxd5 {[%emt 0:04:29]} 22. Qxd5 {[%emt 0:00:28]} exd5 {[%emt 0:00:23]} 23. Rxe7 {[%emt 0:00:05]} 1-0